Workbook

Sheet Cover
A3: Navigator
C5: =Client_Name -> SumProduct Pty Limited
C6: =Model_Name -> SP Capex Smoothing Example.xlsm
C14: Primary Developer: Liam Bastick
C16: General Cover Notes:
C17: Demonstrating how to calculate the "smoothed" capex for a particular profile.
C21: Any queries, please e-mail: | G21: liam.bastick@sumproduct.com
C22: Website: | G22: www.sumproduct.com

Sheet Navigator
A1: Navigator
A2: =Model_Name -> SP Capex Smoothing Example.xlsm
A3: Navigator
E4: Error Checks: | G4: =Overall_Error_Check -> 0
B7: 1 | C7: Table of Contents
F9: Cover
F10: Style Guide
F11: Model Parameters
F12: Capex Smoothing
F13: Timing
F14: Lookup Data
F15: Error Checks

Sheet Style Guide
A1: =IF(ISERROR(RIGHT(CELL("filename",A1),LEN(CELL("filename",A1))-FIND("]",CELL("filename",A1)))), "", RIGHT(CELL("filename",A1),LEN(CELL("filename",A1))-FIND("]",CELL("filename",A1)))) -> Style Guide
A2: =Model_Name -> SP Capex Smoothing Example.xlsm
A3: Navigator
E4: Error Checks: | I4: =Overall_Error_Check -> 0
B6: =MAX($B$5:$B5)+1 -> 1 | C6: Formatting of Headers / Dividers
C8: Description | I8: Display | K8: Style Name
C10: Sheet Title | I10: =C10 -> Sheet Title | K10: Sheet Title
C11: Model Name | I11: =C11 -> Model Name | K11: Model Name
C13: Header 1 | I13: =C13 -> Header 1 | K13: Header 1
C14: Header 2 | I14: =C14 -> Header 2 | K14: Header 2
C15: Header 3 | I15: =C15 -> Header 3 | K15: Header 3
C16: Header 4 | I16: =C16 -> Header 4 | K16: Header 4
C18: Notes | I18: =C18 -> Notes | K18: Notes
C20: Table Heading | I20: =C20 -> Table Heading | K20: Table Heading
B23: =MAX($B$5:$B22)+1 -> 2 | C23: Individual Cell Styles
C25: Description | I25: Display | K25: Style Name
C27: Assumption | I27: Assumption | K27: =C27 -> Assumption
C29: Constraint | I29: =C29 -> Constraint | K29: =C29 -> Constraint
C31: Empty | K31: =C31 -> Empty
C33: Error Check | I33: 0 | K33: =C33 -> Error Check
C35: Hyperlink | I35: Hyperlink | K35: =C35 -> Hyperlink
C37: Internal Reference | I37: ='Error Checks'!E12 -> NPV's reconcile | K37: =C37 -> Internal Reference
C39: Line Calculation | I39: 77 | K39: Line Calc
C41: Line Total | I41: =I39 -> 77 | K41: =C41 -> Line Total
C43: Parameter | I43: 365 | K43: =C43 -> Parameter
C45: Range Name Description | I45: Not_Named | K45: =C45 -> Range Name Description
C47: Row Reference | I47: =ROW(C47) -> 47 | K47: Row Ref
C49: Row Summary | I49: =I41 -> 77 | K49: =C49 -> Row Summary
C51: Units | I51: A$ | K51: =C51 -> Units
C53: WIP | K53: =C53 -> WIP
B56: =MAX($B$5:$B55)+1 -> 3 | C56: Numerical Styles
C58: Description | I58: Display | K58: Style Name
C60: Comma | I60: 123456.789 | K60: =C60 -> Comma
C62: Comma [0] | I62: -123456.789 | K62: Comma [0]
C64: Currency | I64: 123456.789 | K64: Currency
C66: Currency [0] | I66: 123456.789 | K66: Currency [0]
C68: Date | I68: =TODAY() -> 2019-03-08 | K68: =C68 -> Date
C70: Date Heading | I70: =TODAY() -> 2019-03-08 | K70: =C70 -> Date Heading
C72: Numbers 0 | I72: -123456.789 | K72: =C72 -> Numbers 0
C74: Percent | I74: 0.5 | K74: =C74 -> Percent

Sheet Model Parameters
A1: =IF(ISERROR(RIGHT(CELL("filename",A1),LEN(CELL("filename",A1))-FIND("]",CELL("filename",A1)))), "", RIGHT(CELL("filename",A1),LEN(CELL("filename",A1))-FIND("]",CELL("filename",A1)))) -> Model Parameters
A2: =Model_Name -> SP Capex Smoothing Example.xlsm
A3: Navigator
E4: Error Checks: | I4: =Overall_Error_Check -> 0
B6: =MAX($B$5:$B5)+1 -> 1 | C6: General
C8: Key Inputs
E10: General
E11: Model Name | G11: =IF(ISERROR(OR(FIND("[",CELL("filename",A1)),FIND("]",CELL("filename",A1)))),"",MID(CELL("filename",A1),FIND("[",CELL("filename",A1))+1,FIND("]",CELL("filename",A1))-FIND("[",CELL("filename",A1))-1)) -> SP Capex Smoothing Example.xlsm
E12: Client Name | G12: SumProduct Pty Limited
B15: =MAX($B$5:$B14)+1 -> 2 | C15: General Range Names
C17: Technical Assumptions
E19: Days in Year | G19: 365
E20: Months in Month | G20: 1
E21: Months in Quarter | G21: 3
E22: Months in Half Yr | G22: 6
E23: Months in Year | G23: 12
E24: Quarters in Year | G24: 4
E26: Rounding Accuracy | G26: 5
E28: Very Large Number | G28: 1e+99
E29: Very Small Number | G29: 1e-08
E31: Thousand | G31: 1000

Sheet Capex Smoothing
A1: =IF(ISERROR(RIGHT(CELL("filename",A1),LEN(CELL("filename",A1))-FIND("]",CELL("filename",A1)))), "", RIGHT(CELL("filename",A1),LEN(CELL("filename",A1))-FIND("]",CELL("filename",A1)))) -> Capex Smoothing
A2: =Model_Name -> SP Capex Smoothing Example.xlsm
A3: Navigator
B4: Error Checks: | G4: =Overall_Error_Check -> 0
J5: =Timing!J5 -> 2020-12-31 | K5: =Timing!K5 -> 2021-12-31 | L5: =Timing!L5 -> 2022-12-31 | M5: =Timing!M5 -> 2023-12-31 | N5: =Timing!N5 -> 2024-12-31 | O5: =Timing!O5 -> 2025-12-31 | P5: =Timing!P5 -> 2026-12-31 | Q5: =Timing!Q5 -> 2027-12-31 | R5: =Timing!R5 -> 2028-12-31 | S5: =Timing!S5 -> 2029-12-31 | T5: =Timing!T5 -> 2030-12-31 | U5: =Timing!U5 -> 2031-12-31 | V5: =Timing!V5 -> 2032-12-31 | W5: =Timing!W5 -> 2033-12-31 | X5: =Timing!X5 -> 2034-12-31 | Y5: =Timing!Y5 -> 2035-12-31 | Z5: =Timing!Z5 -> 2036-12-31 | AA5: =Timing!AA5 -> 2037-12-31 | AB5: =Timing!AB5 -> 2038-12-31 | AC5: =Timing!AC5 -> 2039-12-31 | AD5: =Timing!AD5 -> 2040-12-31 | AE5: =Timing!AE5 -> 2041-12-31 | AF5: =Timing!AF5 -> 2042-12-31 | AG5: =Timing!AG5 -> 2043-12-31 | AH5: =Timing!AH5 -> 2044-12-31 | AI5: =Timing!AI5 -> 2045-12-31 | AJ5: =Timing!AJ5 -> 2046-12-31 | AK5: =Timing!AK5 -> 2047-12-31 | AL5: =Timing!AL5 -> 2048-12-31 | AM5: =Timing!AM5 -> 2049-12-31
C6: =Timing!C6 -> Start Date | J6: =Timing!J6 -> 2020-01-01 | K6: =Timing!K6 -> 2021-01-01 | L6: =Timing!L6 -> 2022-01-01 | M6: =Timing!M6 -> 2023-01-01 | N6: =Timing!N6 -> 2024-01-01 | O6: =Timing!O6 -> 2025-01-01 | P6: =Timing!P6 -> 2026-01-01 | Q6: =Timing!Q6 -> 2027-01-01 | R6: =Timing!R6 -> 2028-01-01 | S6: =Timing!S6 -> 2029-01-01 | T6: =Timing!T6 -> 2030-01-01 | U6: =Timing!U6 -> 2031-01-01 | V6: =Timing!V6 -> 2032-01-01 | W6: =Timing!W6 -> 2033-01-01 | X6: =Timing!X6 -> 2034-01-01 | Y6: =Timing!Y6 -> 2035-01-01 | Z6: =Timing!Z6 -> 2036-01-01 | AA6: =Timing!AA6 -> 2037-01-01 | AB6: =Timing!AB6 -> 2038-01-01 | AC6: =Timing!AC6 -> 2039-01-01 | AD6: =Timing!AD6 -> 2040-01-01 | AE6: =Timing!AE6 -> 2041-01-01 | AF6: =Timing!AF6 -> 2042-01-01 | AG6: =Timing!AG6 -> 2043-01-01 | AH6: =Timing!AH6 -> 2044-01-01 | AI6: =Timing!AI6 -> 2045-01-01 | AJ6: =Timing!AJ6 -> 2046-01-01 | AK6: =Timing!AK6 -> 2047-01-01 | AL6: =Timing!AL6 -> 2048-01-01 | AM6: =Timing!AM6 -> 2049-01-01
C7: =Timing!C7 -> End Date | J7: =Timing!J7 -> 2020-12-31 | K7: =Timing!K7 -> 2021-12-31 | L7: =Timing!L7 -> 2022-12-31 | M7: =Timing!M7 -> 2023-12-31 | N7: =Timing!N7 -> 2024-12-31 | O7: =Timing!O7 -> 2025-12-31 | P7: =Timing!P7 -> 2026-12-31 | Q7: =Timing!Q7 -> 2027-12-31 | R7: =Timing!R7 -> 2028-12-31 | S7: =Timing!S7 -> 2029-12-31 | T7: =Timing!T7 -> 2030-12-31 | U7: =Timing!U7 -> 2031-12-31 | V7: =Timing!V7 -> 2032-12-31 | W7: =Timing!W7 -> 2033-12-31 | X7: =Timing!X7 -> 2034-12-31 | Y7: =Timing!Y7 -> 2035-12-31 | Z7: =Timing!Z7 -> 2036-12-31 | AA7: =Timing!AA7 -> 2037-12-31 | AB7: =Timing!AB7 -> 2038-12-31 | AC7: =Timing!AC7 -> 2039-12-31 | AD7: =Timing!AD7 -> 2040-12-31 | AE7: =Timing!AE7 -> 2041-12-31 | AF7: =Timing!AF7 -> 2042-12-31 | AG7: =Timing!AG7 -> 2043-12-31 | AH7: =Timing!AH7 -> 2044-12-31 | AI7: =Timing!AI7 -> 2045-12-31 | AJ7: =Timing!AJ7 -> 2046-12-31 | AK7: =Timing!AK7 -> 2047-12-31 | AL7: =Timing!AL7 -> 2048-12-31 | AM7: =Timing!AM7 -> 2049-12-31
C8: =Timing!C8 -> Number of Days | J8: =Timing!J8 -> 366 | K8: =Timing!K8 -> 365 | L8: =Timing!L8 -> 365 | M8: =Timing!M8 -> 365 | N8: =Timing!N8 -> 366 | O8: =Timing!O8 -> 365 | P8: =Timing!P8 -> 365 | Q8: =Timing!Q8 -> 365 | R8: =Timing!R8 -> 366 | S8: =Timing!S8 -> 365 | T8: =Timing!T8 -> 365 | U8: =Timing!U8 -> 365 | V8: =Timing!V8 -> 366 | W8: =Timing!W8 -> 365 | X8: =Timing!X8 -> 365 | Y8: =Timing!Y8 -> 365 | Z8: =Timing!Z8 -> 366 | AA8: =Timing!AA8 -> 365 | AB8: =Timing!AB8 -> 365 | AC8: =Timing!AC8 -> 365 | AD8: =Timing!AD8 -> 366 | AE8: =Timing!AE8 -> 365 | AF8: =Timing!AF8 -> 365 | AG8: =Timing!AG8 -> 365 | AH8: =Timing!AH8 -> 366 | AI8: =Timing!AI8 -> 365 | AJ8: =Timing!AJ8 -> 365 | AK8: =Timing!AK8 -> 365 | AL8: =Timing!AL8 -> 366 | AM8: =Timing!AM8 -> 365
C9: =Timing!C9 -> Counter | J9: =Timing!J9 -> 1 | K9: =Timing!K9 -> 2 | L9: =Timing!L9 -> 3 | M9: =Timing!M9 -> 4 | N9: =Timing!N9 -> 5 | O9: =Timing!O9 -> 6 | P9: =Timing!P9 -> 7 | Q9: =Timing!Q9 -> 8 | R9: =Timing!R9 -> 9 | S9: =Timing!S9 -> 10 | T9: =Timing!T9 -> 11 | U9: =Timing!U9 -> 12 | V9: =Timing!V9 -> 13 | W9: =Timing!W9 -> 14 | X9: =Timing!X9 -> 15 | Y9: =Timing!Y9 -> 16 | Z9: =Timing!Z9 -> 17 | AA9: =Timing!AA9 -> 18 | AB9: =Timing!AB9 -> 19 | AC9: =Timing!AC9 -> 20 | AD9: =Timing!AD9 -> 21 | AE9: =Timing!AE9 -> 22 | AF9: =Timing!AF9 -> 23 | AG9: =Timing!AG9 -> 24 | AH9: =Timing!AH9 -> 25 | AI9: =Timing!AI9 -> 26 | AJ9: =Timing!AJ9 -> 27 | AK9: =Timing!AK9 -> 28 | AL9: =Timing!AL9 -> 29 | AM9: =Timing!AM9 -> 30
B11: =MAX($B$10:$B10)+1 -> 1 | C11: Assumptions
C13: Input Section
E15: Discount Rate | G15: % | I15: 0.05
E17: Growth Rate | G17: % | I17: 0.02
E19: Cashflow Timing | G19: [0,0.5,1] | I19: Middle
E21: Capex | G21: $'000 | J21: 312 | K21: 436 | L21: 586 | M21: 866 | N21: 352 | O21: 834 | P21: 327 | Q21: 601 | R21: 354 | S21: 556
E23: Start Period | G23: # | I23: =IFERROR(MATCH(TRUE,INDEX(Capex_Profile<>0,),0),1) -> 1
E25: Final Period | G25: # | I25: =MAX(IF(Capex_Profile>0,LU_Counter)) -> 10
E27: Number of Periods | G27: # | I27: =Final_Period-Start_Period+1 -> 10
B30: =MAX($B$10:$B29)+1 -> 2 | C30: Discount Factor
C32: Calculations
D34: =C30&" Selection" -> Discount Factor Selection
E36: Pre-Tax Discount Rates
E37: =Start -> Start | G37: 0.000 | J37: =IF(AND(J$9>=Start_Period,J$9<=Final_Period),(1+Discount_Rate)^-(J$9-Start_Period),"") -> 1 | K37: 0.9523809524 | L37: 0.9070294785 | M37: 0.8638375985 | N37: 0.8227024748 | O37: 0.7835261665 | P37: 0.7462153966 | Q37: 0.7106813301 | R37: 0.676839362 | S37: 0.6446089162
E38: =Middle -> Middle | G38: 0.000 | J38: =IF(AND(J$9>=Start_Period,J$9<=Final_Period),(1+Discount_Rate)^-(((2*J$9+1)/2)-Start_Period),"") -> 0.9759000729 | K38: 0.9294286409 | L38: 0.8851701342 | M38: 0.8430191754 | N38: 0.8028754052 | O38: 0.764643243 | P38: 0.72823166 | Q38: 0.6935539619 | R38: 0.6605275828 | S38: 0.6290738884
E39: =End -> End | G39: 0.000 | J39: =IF(AND(J$9>=Start_Period,J$9<=Final_Period),(1+Discount_Rate)^-(J$9-Start_Period+1),"") -> 0.9523809524 | K39: 0.9070294785 | L39: 0.8638375985 | M39: 0.8227024748 | N39: 0.7835261665 | O39: 0.7462153966 | P39: 0.7106813301 | Q39: 0.676839362 | R39: 0.6446089162 | S39: 0.6139132535
E40: =IF(Cashflow_Timing="",Middle,Cashflow_Timing)&" Chosen" -> Middle Chosen | G40: 0.000 | J40: =IF(AND(J$9>=Start_Period,J$9<=Final_Period),IFERROR(INDEX(J37:J39,MATCH(Cashflow_Timing,LU_Cash_Flow_Timing,0)),J38),"") -> 0.9759000729 | K40: 0.9294286409 | L40: 0.8851701342 | M40: 0.8430191754 | N40: 0.8028754052 | O40: 0.764643243 | P40: 0.72823166 | Q40: 0.6935539619 | R40: 0.6605275828 | S40: 0.6290738884
B43: =MAX($B$10:$B42)+1 -> 3 | C43: Original Capex Profile
C45: NPV Demonstration
D47: =C43&" Selection" -> Original Capex Profile Selection
E49: Capex Profile | G49: $'000 | J49: =IF(J$21="","",J$21) -> 312 | K49: =IF(K$21="","",K$21) -> 436 | L49: 586 | M49: 866 | N49: 352 | O49: 834 | P49: 327 | Q49: 601 | R49: 354 | S49: 556
E51: Discount Factor | G51: 0.000 | J51: =IF(J$40="","",J$40) -> 0.9759000729 | K51: =IF(K$40="","",K$40) -> 0.9294286409 | L51: 0.8851701342 | M51: 0.8430191754 | N51: 0.8028754052 | O51: 0.764643243 | P51: 0.72823166 | Q51: 0.6935539619 | R51: 0.6605275828 | S51: 0.6290738884
E53: PV of Capex | G53: $'000 | J53: =IF(J51="","",N(J49)*J51) -> 304.4808228 | K53: =IF(K51="","",N(K49)*K51) -> 405.2308874 | L53: 518.7096986 | M53: 730.0546059 | N53: 282.6121426 | O53: 637.7124647 | P53: 238.1317528 | Q53: 416.8259311 | R53: 233.8267643 | S53: 349.7650819
E55: ="N"&E53 -> NPV of Capex | G55: $'000 | I55: =SUM(J53:AM53) -> 4117.350152
B58: =MAX($B$10:$B57)+1 -> 4 | C58: Smoothed Capex Profile
C60: =C45 -> NPV Demonstration
D62: =C58&" Selection" -> Smoothed Capex Profile Selection
E64: Base Exponent | G64: 0.000 | I64: =(1+Growth_Rate)/(1+Discount_Rate) -> 0.9714285714
H66: Period Part | I66: Factor
E67: =E19 -> Cashflow Timing | G67: =G19 -> [0,0.5,1] | H67: =IF(I$19="",Middle,I$19) -> Middle | I67: =INDEX(LU_Cash_Flow_Timing_Factors,MATCH(H67,LU_Cash_Flow_Timing,0)) -> 0.5
E69: Base Amount | G69: $'000 | I69: =(NPV_of_Original_Capex_Profile*(1-Base_Exponent)/(1-(Base_Exponent^Number_of_Periods)))*(1+Discount_Rate)^Timing_Factor -> 479.0261926
E71: Capex Profile | G71: $'000 | J71: =IF(OR(J$9<Start_Period,J$9>Final_Period),"",IF(J$9=Start_Period,$I69,I71*(1+Growth_Rate))) -> 479.0261926 | K71: 488.6067165 | L71: 498.3788508 | M71: 508.3464278 | N71: 518.5133564 | O71: 528.8836235 | P71: 539.461296 | Q71: 550.2505219 | R71: 561.2555323 | S71: 572.480643
E73: Discount Factor | G73: 0.000 | J73: =IF(J$40="","",J$40) -> 0.9759000729 | K73: =IF(K$40="","",K$40) -> 0.9294286409 | L73: 0.8851701342 | M73: 0.8430191754 | N73: 0.8028754052 | O73: 0.764643243 | P73: 0.72823166 | Q73: 0.6935539619 | R73: 0.6605275828 | S73: 0.6290738884
E75: PV of Capex | G75: $'000 | J75: =IF(J73="","",N(J71)*J73) -> 467.4816963 | K75: =IF(K73="","",N(K71)*K73) -> 454.1250764 | L75: 441.1500742 | M75: 428.5457864 | N75: 416.3016211 | O75: 404.407289 | P75: 392.8527951 | Q75: 381.6284295 | R75: 370.7247601 | S75: 360.1326241
E77: ="N"&E75 -> NPV of Capex | G77: $'000 | H77: =(ROUND(NPV_of_Original_Capex_Profile-NPV_of_Smoothed_Capex_Profile,Rounding_Accuracy)<>0)*1 -> 0 | I77: =SUM(J75:AM75) -> 4117.350152

Sheet Timing
A1: =IF(ISERROR(RIGHT(CELL("filename",A1),LEN(CELL("filename",A1))-FIND("]",CELL("filename",A1)))), "", RIGHT(CELL("filename",A1),LEN(CELL("filename",A1))-FIND("]",CELL("filename",A1)))) -> Timing
A2: =Model_Name -> SP Capex Smoothing Example.xlsm
A3: Navigator
B4: Error Checks: | F4: =Overall_Error_Check -> 0
J5: =J$7 -> 2020-12-31 | K5: =K$7 -> 2021-12-31 | L5: =L$7 -> 2022-12-31 | M5: =M$7 -> 2023-12-31 | N5: =N$7 -> 2024-12-31 | O5: =O$7 -> 2025-12-31 | P5: 2026-12-31 | Q5: 2027-12-31 | R5: 2028-12-31 | S5: 2029-12-31 | T5: 2030-12-31 | U5: 2031-12-31 | V5: 2032-12-31 | W5: 2033-12-31 | X5: 2034-12-31 | Y5: 2035-12-31 | Z5: 2036-12-31 | AA5: 2037-12-31 | AB5: 2038-12-31 | AC5: 2039-12-31 | AD5: 2040-12-31 | AE5: 2041-12-31 | AF5: 2042-12-31 | AG5: 2043-12-31 | AH5: 2044-12-31 | AI5: 2045-12-31 | AJ5: 2046-12-31 | AK5: 2047-12-31 | AL5: 2048-12-31 | AM5: 2049-12-31
C6: Start Date | J6: =IF(J$9=1,Model_Start_Date,I$7+1) -> 2020-01-01 | K6: 2021-01-01 | L6: 2022-01-01 | M6: 2023-01-01 | N6: 2024-01-01 | O6: 2025-01-01 | P6: 2026-01-01 | Q6: 2027-01-01 | R6: 2028-01-01 | S6: 2029-01-01 | T6: 2030-01-01 | U6: 2031-01-01 | V6: 2032-01-01 | W6: 2033-01-01 | X6: 2034-01-01 | Y6: 2035-01-01 | Z6: 2036-01-01 | AA6: 2037-01-01 | AB6: 2038-01-01 | AC6: 2039-01-01 | AD6: 2040-01-01 | AE6: 2041-01-01 | AF6: 2042-01-01 | AG6: 2043-01-01 | AH6: 2044-01-01 | AI6: 2045-01-01 | AJ6: 2046-01-01 | AK6: 2047-01-01 | AL6: 2048-01-01 | AM6: 2049-01-01
C7: End Date | J7: =EOMONTH(J$6,MOD(Periodicity+Reporting_Month_Factor-MONTH(J$6),Periodicity)) -> 2020-12-31 | K7: 2021-12-31 | L7: 2022-12-31 | M7: 2023-12-31 | N7: 2024-12-31 | O7: 2025-12-31 | P7: 2026-12-31 | Q7: 2027-12-31 | R7: 2028-12-31 | S7: 2029-12-31 | T7: 2030-12-31 | U7: 2031-12-31 | V7: 2032-12-31 | W7: 2033-12-31 | X7: 2034-12-31 | Y7: 2035-12-31 | Z7: 2036-12-31 | AA7: 2037-12-31 | AB7: 2038-12-31 | AC7: 2039-12-31 | AD7: 2040-12-31 | AE7: 2041-12-31 | AF7: 2042-12-31 | AG7: 2043-12-31 | AH7: 2044-12-31 | AI7: 2045-12-31 | AJ7: 2046-12-31 | AK7: 2047-12-31 | AL7: 2048-12-31 | AM7: 2049-12-31
C8: Number of Days | J8: =J7-J6+1 -> 366 | K8: =K7-K6+1 -> 365 | L8: 365 | M8: 365 | N8: 366 | O8: =O7-O6+1 -> 365 | P8: 365 | Q8: 365 | R8: 366 | S8: 365 | T8: 365 | U8: 365 | V8: 366 | W8: 365 | X8: 365 | Y8: 365 | Z8: 366 | AA8: 365 | AB8: 365 | AC8: 365 | AD8: 366 | AE8: 365 | AF8: 365 | AG8: 365 | AH8: 366 | AI8: 365 | AJ8: 365 | AK8: 365 | AL8: 366 | AM8: 365
C9: Counter | J9: =N(I$9)+1 -> 1 | K9: =N(J$9)+1 -> 2 | L9: 3 | M9: 4 | N9: 5 | O9: =N(N$9)+1 -> 6 | P9: =N(O$9)+1 -> 7 | Q9: =N(P$9)+1 -> 8 | R9: =N(Q$9)+1 -> 9 | S9: =N(R$9)+1 -> 10 | T9: =N(S$9)+1 -> 11 | U9: =N(T$9)+1 -> 12 | V9: =N(U$9)+1 -> 13 | W9: =N(V$9)+1 -> 14 | X9: =N(W$9)+1 -> 15 | Y9: =N(X$9)+1 -> 16 | Z9: =N(Y$9)+1 -> 17 | AA9: =N(Z$9)+1 -> 18 | AB9: =N(AA$9)+1 -> 19 | AC9: =N(AB$9)+1 -> 20 | AD9: =N(AC$9)+1 -> 21 | AE9: =N(AD$9)+1 -> 22 | AF9: =N(AE$9)+1 -> 23 | AG9: =N(AF$9)+1 -> 24 | AH9: =N(AG$9)+1 -> 25 | AI9: =N(AH$9)+1 -> 26 | AJ9: =N(AI$9)+1 -> 27 | AK9: =N(AJ$9)+1 -> 28 | AL9: =N(AK$9)+1 -> 29 | AM9: =N(AL$9)+1 -> 30
B11: =MAX($B$10:$B10)+1 -> 1 | C11: Timing Assumptions
C13: Data (must be annual periodicity with full periods)
D15: Model Start Date | H15: =DATE(YEAR(TODAY())+1,1,1) -> 2020-01-01
D17: Number of Months in a Full Period | H17: 12
D19: Example Reporting Month | H19: 12 | I19: ="e.g. "&TEXT(DATE(YEAR(Model_Start_Date)+IF(Example_Reporting_Month<MONTH(Model_Start_Date),1,0),Example_Reporting_Month+1,1)-1,"dd-Mmm-yy") -> e.g. 31-Dec-20
D21: Reporting Month Factor | H21: =MOD(Example_Reporting_Month-1,Periodicity)+1 -> 12
D23: Months per Year | H23: 12

Sheet Lookup Data
A1: =IF(ISERROR(RIGHT(CELL("filename",A1),LEN(CELL("filename",A1))-FIND("]",CELL("filename",A1)))), "", RIGHT(CELL("filename",A1),LEN(CELL("filename",A1))-FIND("]",CELL("filename",A1)))) -> Lookup Data
A2: =Model_Name -> SP Capex Smoothing Example.xlsm
A3: Navigator
B4: Error Checks: | G4: =Overall_Error_Check -> 0
B6: =MAX($B$5:$B5)+1 -> 1 | C6: Cash Flow Timing
C8: ="LU_"&SUBSTITUTE(C6," ","_") -> LU_Cash_Flow_Timing
F10: =C6 -> Cash Flow Timing
F11: Start | H11: =C8 -> LU_Cash_Flow_Timing
F12: Middle
F13: End
B16: =MAX($B$5:$B15)+1 -> 2 | C16: Cash Flow Timing Factors
C18: ="LU_"&SUBSTITUTE(C16," ","_") -> LU_Cash_Flow_Timing_Factors
F20: =C16 -> Cash Flow Timing Factors
F21: 0 | H21: =C18 -> LU_Cash_Flow_Timing_Factors
F22: 0.5
F23: 1

Sheet Error Checks
A1: =IF(ISERROR(RIGHT(CELL("filename",A1),LEN(CELL("filename",A1))-FIND("]",CELL("filename",A1)))), "", RIGHT(CELL("filename",A1),LEN(CELL("filename",A1))-FIND("]",CELL("filename",A1)))) -> Error Checks
A2: =Model_Name -> SP Capex Smoothing Example.xlsm
A3: Navigator
B4: Error Checks: | F4: =Overall_Error_Check -> 0
B6: =MAX($B$5:$B5)+1 -> 1 | C6: Error Checks
C8: Summary of Errors
D10: Assumptions
E12: NPV's reconcile | I12: =HL_NPVs_Reconcile -> 0
E17: =C8 -> Summary of Errors | I17: =MIN(1,SUM(I11:I15)) -> 0
